fUST/lending_fUST_20240225
["ID","MTS","AMOUNT","RATE_DAILY","PERIOD"]
[315119889,1708854642840,-500.0,0.0001942,2]
[315119890,1708854642850,-500.0,0.0001942,2]
[315119891,1708854642859,-200.0,0.0001942,2]
[315119892,1708854642868,-500.0,0.0001942,2]
[315119893,1708854642877,-500.0,0.0001942,2]
[315119894,1708854642886,-500.0,0.0001942,2]
[315119895,1708854642896,-753.41423792,0.00019422,2]
[315119896,1708854642905,-500.0,0.00019439,2]
[315119897,1708854642914,-2825.14365742,0.00019449,2]
[315119898,1708854642922,-500.0,0.00019451,2]
[315119899,1708854642931,-500.0,0.00019451,2]
[315119900,1708854642940,-555.85419396,0.00019451,2]
[315119901,1708854642950,-500.0,0.00019451,2]
[315119902,1708854642959,-500.0,0.00019452,2]
[315119903,1708854642968,-500.0,0.00019452,2]
[315119904,1708854642977,-500.0,0.00019452,2]
[315119905,1708854642986,-500.0,0.00019452,2]
[315119906,1708854642995,-500.0,0.00019452,2]
[315119907,1708854643005,-500.0,0.00019452,2]
[315119909,1708854643014,-500.0,0.00019452,2]
[315119910,1708854643024,-373.72715939,0.00019452,2]
[315119911,1708854643033,-151.0,0.00019452,2]
[315119912,1708854643042,-690.73,0.00019452,2]
[315119914,1708854643051,-400.32969916,0.00019452,2]
[315119916,1708854643061,-500.0,0.00019452,2]
[315119918,1708854643070,-500.0,0.00019452,2]
[315119920,1708854643079,-500.0,0.00019452,2]
[315119922,1708854643088,-500.0,0.00019452,2]
[315119924,1708854643098,-615.70528262,0.00019452,2]
[315119926,1708854643106,-500.0,0.00019452,2]
[315119928,1708854643115,-500.0,0.00019452,2]
[315119930,1708854643124,-500.0,0.00019452,2]
[315119932,1708854643133,-500.0,0.00019452,2]
[315119934,1708854643142,-500.0,0.00019452,2]
[315119937,1708854643150,-500.0,0.00019452,2]
[315119940,1708854643159,-502.10212227,0.00019452,2]
[315119942,1708854643169,-604.0350439,0.00019452,2]
[315119945,1708854643178,-1397.85,0.00019452,2]
[315119948,1708854643187,-500.0,0.00019452,2]
[315119951,1708854643197,-500.0,0.00019452,2]
[315119953,1708854643206,-500.0,0.00019452,2]
[315119957,1708854643215,-500.0,0.00019452,2]
[315119960,1708854643224,-500.0,0.00019452,2]
[315119963,1708854643234,-500.0,0.00019452,2]
[315119965,1708854643243,-500.0,0.00019452,2]
[315119968,1708854643253,-500.0,0.00019452,2]
[315119971,1708854643262,-1000.0,0.00019452,2]
[315119974,1708854643271,-500.0,0.00019452,2]
[315119977,1708854643280,-500.0,0.00019452,2]
[315119979,1708854643289,-500.0,0.00019452,2]
[315119983,1708854643299,-500.0,0.00019452,2]
[315119985,1708854643308,-500.0,0.00019452,2]
[315119987,1708854643318,-500.0,0.00019452,2]
[315119990,1708854643327,-500.0,0.00019452,2]
[315119993,1708854643337,-500.0,0.00019452,2]
[315119995,1708854643346,-500.0,0.00019452,2]
[315119997,1708854643355,-500.0,0.00019452,2]
[315119999,1708854643365,-500.0,0.00019452,2]
[315120001,1708854643375,-500.0,0.00019452,2]
[315120003,1708854643384,-500.0,0.00019452,2]
[315120005,1708854643393,-500.0,0.00019452,2]
[315120007,1708854643402,-500.0,0.00019452,2]
[315120009,1708854643411,-501.69596755,0.00019452,2]
[315120011,1708854643420,-500.0,0.00019452,2]
[315120013,1708854643429,-501.31282411,0.00019452,2]
[315120015,1708854643438,-500.0,0.00019452,2]
[315120017,1708854643448,-500.0,0.00019452,2]
[315120019,1708854643456,-502.62605418,0.00019452,2]
[315120021,1708854643466,-501.59136464,0.00019452,2]
[315120023,1708854643475,-500.0,0.00019452,2]
[315120025,1708854643484,-500.0,0.00019452,2]
[315120027,1708854643493,-500.0,0.00019452,2]
[315120029,1708854643503,-500.0,0.00019452,2]
[315120031,1708854643512,-500.0,0.00019452,2]
[315120033,1708854643522,-500.0,0.00019452,2]
[315120035,1708854643531,-500.0,0.00019452,2]
[315120037,1708854643540,-500.0,0.00019452,2]
[315120039,1708854643549,-500.0,0.00019452,2]
[315120041,1708854643559,-500.0,0.00019452,2]
[315120043,1708854643568,-500.0,0.00019452,2]
[315120045,1708854643577,-500.0,0.00019452,2]
[315120047,1708854643586,-1615.47,0.00019452,2]
[315120049,1708854643595,-502.29163787,0.00019452,2]
[315120051,1708854643604,-500.0,0.00019452,2]
[315120053,1708854643613,-759.75,0.00019452,2]
[315120054,1708854643623,-500.0,0.00019452,2]
[315120056,1708854643632,-500.0,0.00019452,2]
[315120058,1708854643641,-1628.49,0.00019452,2]
[315120060,1708854643651,-500.0,0.00019452,2]
[315120062,1708854643660,-500.0,0.00019452,2]
[315120064,1708854643669,-500.0,0.00019452,2]
[315120066,1708854643678,-500.0,0.00019452,2]
[315120068,1708854643691,-500.0,0.00019452,2]
[315120070,1708854643701,-864.94,0.00019452,2]
[315120073,1708854643711,-414.64097226,0.00019452,2]
[315120074,1708854643720,-500.69827752,0.00019452,2]
[315120077,1708854643732,-500.63186668,0.00019452,2]
[315120079,1708854643741,-500.0,0.00019452,2]
[315120081,1708854643751,-500.0,0.00019452,2]
[315120083,1708854643760,-500.0,0.00019452,2]
[315120085,1708854643771,-500.0,0.00019452,2]
[315120086,1708854643781,-578.10372524,0.00019452,2]
[315120088,1708854643791,-500.0,0.00019452,2]
[315120090,1708854643800,-500.0,0.00019452,2]
[315120092,1708854643809,-1386.69,0.00019452,2]
[315120094,1708854643818,-500.0,0.00019452,2]
[315120095,1708854643828,-218.11779643,0.00019452,2]
[315120096,1708854643838,-934.83,0.00019452,2]
[315120098,1708854643847,-500.0,0.00019452,2]
[315120099,1708854643856,-500.57257284,0.00019452,2]
[315120100,1708854643865,-500.0,0.00019452,2]
[315120102,1708854643874,-500.0,0.00019452,2]
[315120103,1708854643883,-500.0,0.00019452,2]
[315120105,1708854643893,-605.91,0.00019452,2]
[315120107,1708854643902,-500.0,0.00019452,2]
[315120108,1708854643912,-1098.33,0.00019452,2]
[315120109,1708854643922,-500.0,0.00019452,2]
[315120110,1708854643931,-9393.44,0.00019452,2]
[315120111,1708854643940,-1250.64,0.00019452,2]
[315120112,1708854643950,-500.0,0.00019452,2]
[315120113,1708854643960,-500.0,0.00019452,2]
[315120114,1708854643970,-500.0,0.00019452,2]
[315120115,1708854643980,-1248.92,0.00019452,2]
[315120116,1708854643990,-500.0,0.00019452,2]
[315120117,1708854644000,-226.317219,0.00019452,2]
[315120118,1708854644010,-500.0,0.00019452,2]
[315120119,1708854644020,-500.0,0.00019452,2]
[315120120,1708854644029,-950.68,0.00019452,2]
[315120121,1708854644038,-500.0,0.00019452,2]
[315120122,1708854644048,-500.0,0.00019452,2]
[315120123,1708854644057,-500.0,0.00019452,2]
[315120124,1708854644067,-500.0,0.00019452,2]
[315120125,1708854644076,-500.0,0.00019452,2]
[315120126,1708854644086,-500.0,0.00019452,2]
[315120127,1708854644095,-500.0,0.00019452,2]
[315120128,1708854644105,-500.0,0.00019452,2]
[315120129,1708854644115,-424.34923764,0.00019452,2]
[315120130,1708854644125,-500.0,0.00019452,2]
[315120131,1708854644134,-500.0,0.00019452,2]
[315120132,1708854644144,-500.0,0.00019452,2]
[315120133,1708854644154,-500.0,0.00019452,2]
[315120134,1708854644164,-504.63311512,0.00019452,2]
[315120135,1708854644173,-500.0,0.00019452,2]
[315120136,1708854644183,-500.0,0.00019452,2]
[315120137,1708854644192,-502.5056057,0.00019452,2]
[315120138,1708854644203,-10217.44,0.00019452,2]
[315120139,1708854644212,-500.0,0.00019452,2]
[315120140,1708854644222,-500.0,0.00019452,2]
[315120141,1708854644231,-500.0,0.00019452,2]
[315120142,1708854644240,-500.0,0.00019452,2]
[315120143,1708854644250,-500.0,0.00019452,2]
[315120144,1708854644261,-500.53133175,0.00019452,2]
[315120145,1708854644270,-680.81,0.00019452,2]
[315120146,1708854644280,-543.83,0.00019452,2]
[315120147,1708854644289,-500.0,0.00019452,2]
[315120148,1708854644298,-500.0,0.00019452,2]
[315120149,1708854644307,-500.0,0.00019452,2]
[315120150,1708854644316,-500.0,0.00019452,2]
[315120151,1708854644325,-500.0,0.00019452,2]
[315120152,1708854644335,-500.0,0.00019452,2]
[315120153,1708854644344,-500.0,0.00019452,2]
[315120154,1708854644354,-500.0,0.00019452,2]
[315120155,1708854644363,-1667.45,0.00019452,2]
[315120156,1708854644373,-500.0,0.00019452,2]
[315120157,1708854644383,-5180.1,0.00019452,2]
[315120158,1708854644392,-501.13968867,0.00019452,2]
[315120159,1708854644403,-500.0,0.00019452,2]
[315120160,1708854644413,-500.0,0.00019452,2]
[315120161,1708854644424,-500.0,0.00019452,2]
[315120162,1708854644433,-500.0,0.00019452,2]
[315120163,1708854644443,-500.0,0.00019452,2]
[315120164,1708854644454,-745.24,0.00019452,2]
[315120165,1708854644466,-500.0,0.00019452,2]
[315120166,1708854644475,-753.77,0.00019452,2]
[315120167,1708854644485,-312.19112471,0.00019452,2]
[315120168,1708854644494,-1912.33,0.00019452,2]
[315120169,1708854644504,-500.0,0.00019452,2]
[315120170,1708854644513,-500.0,0.00019452,2]
[315120171,1708854644524,-500.0,0.00019452,2]
[315120172,1708854644533,-500.0,0.00019452,2]
[315120173,1708854644542,-500.0,0.00019452,2]
[315120174,1708854644551,-3199.35,0.00019452,2]
[315120175,1708854644561,-500.0,0.00019452,2]
[315120176,1708854644571,-4161.12,0.00019452,2]
[315120177,1708854644580,-500.0,0.00019452,2]
[315120178,1708854644590,-500.0,0.00019452,2]
[315120179,1708854644602,-500.0,0.00019452,2]
[315120180,1708854644611,-500.0,0.00019452,2]
[315120181,1708854644621,-500.83331226,0.00019452,2]
[315120182,1708854644631,-500.0,0.00019452,2]
[315120183,1708854644640,-500.0,0.00019452,2]
[315120184,1708854644649,-1234.75,0.00019452,2]
[315120185,1708854644659,-500.0,0.00019452,2]
[315120186,1708854644668,-803.11,0.00019452,2]
[315120187,1708854644762,-500.0,0.00019452,2]
[315120188,1708854644772,-500.0,0.00019452,2]
[315120189,1708854644781,-971.07,0.00019452,2]
[315120190,1708854644790,-500.0,0.00019452,2]
[315120191,1708854644799,-941.23,0.00019452,2]
[315120192,1708854644808,-500.0,0.00019452,2]
[315120193,1708854644818,-640.14797302,0.00019452,2]
[315120194,1708854644827,-500.0,0.00019452,2]
[315120195,1708854644836,-5551.08823382,0.00019489,2]
[315120196,1708854644845,-331.41873505,0.00019489,2]
[315120197,1708854644854,-5551.08823382,0.0001949,2]
[315120198,1708854644863,-5551.08823382,0.00019495,2]
[315120199,1708854644872,-500.0,0.00019506,2]
[315120200,1708854644883,-2825.14365742,0.00019513,2]
[315120201,1708854644892,-620.04039013,0.00019542,2]
[315120202,1708854644902,-500.0,0.00019561,2]
[315120203,1708854644911,-2825.14365742,0.00019578,2]
[315120204,1708854644921,-500.0,0.00019616,2]
[315120205,1708854644931,-166.666666,0.00019627,2]
[315120206,1708854644940,-2825.14365742,0.00019642,2]
[315120207,1708854644950,-500.0,0.0001967,2]
[315120208,1708854644959,-500.0,0.00019693,2]
[315120209,1708854644968,-501.50917574,0.00019694,2]
[315120210,1708854644978,-500.0,0.00019694,2]
[315120211,1708854644987,-500.0,0.00019694,2]
[315120212,1708854644996,-500.0,0.00019694,2]
[315120213,1708854645006,-331.41873505,0.00019695,2]
[315120214,1708854645015,-4187.66305356,0.000197,2]
[315120215,1708854645024,-4187.66305356,0.000197,2]
[315120216,1708854645034,-4187.66305356,0.000197,2]
[315120217,1708854645043,-2825.14365742,0.00019707,2]
[315120218,1708854645052,-500.0,0.00019725,2]
[315120219,1708854645061,-500.0,0.00019725,2]
[315120220,1708854645071,-380.71677429,0.00019726,2]
[315120221,1708854645080,-500.0,0.00019726,2]
[315120222,1708854645089,-500.0,0.00019726,2]
[315120223,1708854645098,-500.0,0.00019726,2]
[315120224,1708854645108,-500.0,0.00019726,2]
[315120225,1708854645117,-690.73,0.00019726,2]
[315120226,1708854645126,-500.0,0.00019726,2]
[315120227,1708854645135,-500.0,0.00019726,2]
[315120228,1708854645144,-500.0,0.00019726,2]
[315120229,1708854645153,-500.0,0.00019726,2]
[315120230,1708854645163,-500.0,0.00019726,2]
[315120231,1708854645172,-500.0,0.00019726,2]
[315120232,1708854645181,-500.0,0.00019726,2]
[315120233,1708854645191,-500.0,0.00019726,2]
[315120234,1708854645200,-1397.85,0.00019726,2]
[315120235,1708854645209,-228.67540805,0.00019726,2]
[315120236,1708854645218,-500.0,0.00019726,2]
[315120237,1708854645227,-500.0,0.00019726,2]
[315120238,1708854645237,-500.0,0.00019726,2]
[315120239,1708854645246,-310.0,0.00019726,2]
[315120240,1708854645255,-500.0,0.00019726,2]
[315120241,1708854645265,-858.36901513,0.00019726,2]
[315120242,1708854645275,-500.0,0.00019726,2]
[315120243,1708854645284,-500.0,0.00019726,2]
[315120244,1708854645294,-500.0,0.00019726,2]
[315120245,1708854645303,-500.0,0.00019726,2]
[315120246,1708854645312,-500.0,0.00019726,2]
[315120247,1708854645322,-500.0,0.00019726,2]
[315120248,1708854645332,-500.0,0.00019726,2]
[315120249,1708854645343,-500.0,0.00019726,2]
[315120250,1708854645353,-182.31646825,0.00019726,2]
[315120251,1708854645363,-501.8775493,0.00019726,2]
[315120252,1708854645372,-500.0,0.00019726,2]
[315120253,1708854645380,-500.0,0.00019726,2]
[315120254,1708854645389,-500.0,0.00019726,2]
[315120255,1708854645400,-500.0,0.00019726,2]
[315120256,1708854645411,-500.0,0.00019726,2]
[315120257,1708854645421,-500.0,0.00019726,2]
[315120258,1708854645431,-500.0,0.00019726,2]
[315120259,1708854645442,-369.32155935,0.00019726,2]
[315120260,1708854645451,-500.0,0.00019726,2]
[315120261,1708854645462,-501.92032583,0.00019726,2]
[315120262,1708854645472,-500.0,0.00019726,2]
[315120263,1708854645481,-500.0,0.00019726,2]
[315120264,1708854645490,-500.0,0.00019726,2]
[315120265,1708854645498,-500.0,0.00019726,2]
[315120266,1708854645508,-305.08549894,0.00019726,2]
[315120267,1708854645516,-500.0,0.00019726,2]
[315120268,1708854645525,-363.0349183,0.00019726,2]
[315120269,1708854645534,-1615.47,0.00019726,2]
[315120270,1708854645543,-759.75,0.00019726,2]
[315120271,1708854645552,-500.0,0.00019726,2]
[315120272,1708854645561,-500.0,0.00019726,2]
[315120273,1708854645570,-1628.49,0.00019726,2]
[315120274,1708854645579,-500.0,0.00019726,2]
[315120275,1708854645588,-500.0,0.00019726,2]
[315120276,1708854645597,-500.0,0.00019726,2]
[315120277,1708854645606,-294.90521333,0.00019726,2]
[315120278,1708854645616,-501.80284884,0.00019726,2]
[315120279,1708854645625,-864.94,0.00019726,2]
[315120280,1708854645634,-500.0,0.00019726,2]
[315120281,1708854645643,-500.0,0.00019726,2]
[315120282,1708854645653,-500.0,0.00019726,2]
[315120283,1708854645662,-500.0,0.00019726,2]
[315120284,1708854645672,-1386.69,0.00019726,2]
[315120285,1708854645684,-500.0,0.00019726,2]
[315120286,1708854645693,-934.83,0.00019726,2]
[315120287,1708854645703,-500.0,0.00019726,2]
[315120288,1708854645712,-500.0,0.00019726,2]
[315120289,1708854645721,-500.0,0.00019726,2]
[315120290,1708854645731,-500.0,0.00019726,2]
[315120291,1708854645741,-605.91,0.00019726,2]
[315120292,1708854645750,-500.0,0.00019726,2]
[315120293,1708854645761,-1098.33,0.00019726,2]
[315120294,1708854645770,-500.0,0.00019726,2]
[315120295,1708854645779,-9393.44,0.00019726,2]
[315120296,1708854645788,-1250.64,0.00019726,2]
[315120297,1708854645797,-500.0,0.00019726,2]
[315120298,1708854645806,-500.0,0.00019726,2]
[315120299,1708854645815,-500.0,0.00019726,2]
[315120300,1708854645824,-1248.92,0.00019726,2]
[315120301,1708854645834,-500.0,0.00019726,2]
[315120302,1708854645843,-500.0,0.00019726,2]
[315120303,1708854645854,-190.12652069,0.00019726,2]
[315120304,1708854645863,-950.68,0.00019726,2]
[315120305,1708854645872,-500.0,0.00019726,2]
[315120306,1708854645881,-500.0,0.00019726,2]
[315120307,1708854645890,-500.0,0.00019726,2]
[315120308,1708854645899,-500.0,0.00019726,2]
[315120309,1708854645908,-500.0,0.00019726,2]
[315120310,1708854645917,-500.0,0.00019726,2]
[315120311,1708854645926,-500.0,0.00019726,2]
[315120312,1708854645935,-500.0,0.00019726,2]
[315120313,1708854645944,-500.0,0.00019726,2]
[315120314,1708854645954,-500.0,0.00019726,2]
[315120315,1708854645964,-500.0,0.00019726,2]
[315120316,1708854645973,-500.0,0.00019726,2]
[315120317,1708854645983,-500.0,0.00019726,2]
[315120318,1708854645992,-10217.44,0.00019726,2]
[315120319,1708854646002,-500.0,0.00019726,2]
[315120320,1708854646012,-500.0,0.00019726,2]
[315120321,1708854646022,-500.0,0.00019726,2]
[315120322,1708854646031,-500.0,0.00019726,2]
[315120323,1708854646040,-500.0,0.00019726,2]
[315120324,1708854646050,-680.81,0.00019726,2]
[315120325,1708854646059,-543.83,0.00019726,2]
[315120326,1708854646071,-500.0,0.00019726,2]
[315120328,1708854646080,-393.20705888,0.00019726,2]
[315120329,1708854646089,-500.0,0.00019726,2]
[315120330,1708854646099,-500.0,0.00019726,2]
[315120331,1708854646109,-500.0,0.00019726,2]
[315120332,1708854646118,-577.32348344,0.00019726,2]
[315120333,1708854646128,-500.0,0.00019726,2]
[315120335,1708854646137,-500.0,0.00019726,2]
[315120336,1708854646146,-1667.45,0.00019726,2]
[315120337,1708854646155,-500.0,0.00019726,2]
[315120338,1708854646165,-5180.1,0.00019726,2]
[315120339,1708854646175,-500.0,0.00019726,2]
[315120340,1708854646184,-500.0,0.00019726,2]
[315120341,1708854646194,-745.24,0.00019726,2]
[315120343,1708854646203,-500.0,0.00019726,2]
[315120345,1708854646212,-753.77,0.00019726,2]
[315120347,1708854646221,-1912.33,0.00019726,2]
[315120348,1708854646231,-500.0,0.00019726,2]
[315120350,1708854646240,-500.0,0.00019726,2]
[315120351,1708854646250,-500.0,0.00019726,2]
[315120352,1708854646259,-500.0,0.00019726,2]
[315120353,1708854646269,-3199.35,0.00019726,2]
[315120354,1708854646278,-500.0,0.00019726,2]
[315120355,1708854646287,-4161.12,0.00019726,2]
[315120356,1708854646296,-504.68580261,0.00019726,2]
[315120357,1708854646305,-500.0,0.00019726,2]
[315120359,1708854646314,-500.0,0.00019726,2]
[315120361,1708854646324,-500.0,0.00019726,2]
[315120363,1708854646334,-500.0,0.00019726,2]
[315120364,1708854646343,-500.0,0.00019726,2]
[315120365,1708854646352,-1234.75,0.00019726,2]
[315120366,1708854646362,-803.11,0.00019726,2]
[315120368,1708854646371,-500.0,0.00019726,2]
[315120369,1708854646381,-500.0,0.00019726,2]
[315120370,1708854646390,-971.07,0.00019726,2]
[315120371,1708854646399,-500.0,0.00019726,2]
[315120372,1708854646409,-941.23,0.00019726,2]
[315120373,1708854646418,-249.69840039,0.00019726,2]
[315120374,1708854646428,-500.0,0.00019726,2]
[315120375,1708854646439,-306.0,0.00019726,2]
[315120376,1708854646448,-2825.14365742,0.00019771,2]
[315120377,1708854646457,-271.12998174,0.0001978,2]
[315120378,1708854646466,-2825.14365742,0.00019836,2]
[315120379,1708854646475,-153.0,0.00019863,2]
[315120380,1708854646484,-153.0,0.0001989,2]
[315120381,1708854646493,-153.0,0.0001989,2]
[315120382,1708854646502,-153.0,0.0001989,2]
[315120383,1708854646511,-306.0,0.0001989,2]
[315120384,1708854646520,-153.0,0.0001989,2]
[315120385,1708854646529,-200.5569553,0.0001989,2]
[315120386,1708854646538,-153.0,0.0001989,2]
[315120387,1708854646547,-153.0,0.0001989,2]
[315120388,1708854646555,-500.0,0.00019899,2]
[315120389,1708854646564,-2825.14365742,0.000199,2]
[315120390,1708854646573,-331.41873505,0.000199,2]
[315120391,1708854646582,-601.06,0.00019968,2]
[315120392,1708854646591,-596.20651397,0.00019968,2]
[315120393,1708854646600,-500.0,0.00019968,2]
[315120394,1708854646609,-262.09459279,0.00019998,2]
[315120395,1708854646618,-281.345214,0.00019998,2]
[315120396,1708854646627,-704.04980982,0.00019998,2]
[315120397,1708854646636,-155.04647676,0.00019998,2]
[315120398,1708854646644,-182.02685893,0.00019998,2]
[315120400,1708854646653,-500.0,0.00019998,2]
[315120402,1708854646662,-1000.0,0.00019999,2]
[315120403,1708854646671,-1000.0,0.00019999,3]
[315120405,1708854646681,-1000.0,0.00019999,4]
[315120406,1708854646692,-500.0,0.00019999,2]
[315120407,1708854646701,-500.0,0.00019999,2]
[315120408,1708854646710,-500.0,0.00019999,2]
[315120409,1708854646720,-500.0,0.00019999,2]
[315120410,1708854646730,-500.0,0.00019999,2]
[315120411,1708854646740,-500.0,0.00019999,2]
[315120412,1708854646749,-500.0,0.00019999,2]
[315120413,1708854646854,-500.0,0.00019999,2]
[315120414,1708854646864,-500.0,0.00019999,2]
[315120415,1708854646874,-427.37193576,0.00019999,2]
[315120416,1708854646884,-500.0,0.00019999,2]
[315120417,1708854646893,-590.39150988,0.00019999,2]
[315120418,1708854646902,-500.0,0.00019999,2]
[315120419,1708854646911,-500.0,0.00019999,2]
[315120420,1708854646920,-500.0,0.00019999,2]
[315120421,1708854646929,-500.0,0.00019999,2]
[315120422,1708854646939,-243.70862959,0.00019999,2]
[315120423,1708854646948,-500.0,0.00019999,2]
[315120424,1708854646957,-500.0,0.00019999,2]
[315120425,1708854646967,-500.0,0.00019999,2]
[315120426,1708854646975,-500.0,0.00019999,2]
[315120427,1708854646985,-500.0,0.00019999,2]
[315120428,1708854646994,-500.0,0.00019999,2]
[315120429,1708854647003,-500.0,0.00019999,2]
[315120430,1708854647014,-500.0,0.00019999,2]
[315120431,1708854647023,-631.90379371,0.00019999,2]
[315120432,1708854647032,-500.0,0.00019999,2]
[315120433,1708854647041,-500.0,0.00019999,2]
[315120434,1708854647051,-500.0,0.00019999,2]
[315120435,1708854647060,-500.0,0.00019999,2]
[315120436,1708854647069,-500.0,0.00019999,2]
[315120437,1708854647078,-500.0,0.00019999,2]
[315120438,1708854647087,-500.0,0.00019999,2]
[315120439,1708854647097,-174.03423626,0.00019999,2]
[315120440,1708854647106,-500.0,0.00019999,2]
[315120441,1708854647115,-500.0,0.00019999,2]
[315120442,1708854647124,-500.0,0.00019999,2]
[315120443,1708854647133,-400.0,0.00019999,2]
[315120444,1708854647142,-500.0,0.00019999,2]
[315120445,1708854647152,-500.0,0.00019999,2]
[315120446,1708854647162,-500.0,0.00019999,2]
[315120447,1708854647171,-500.0,0.00019999,2]
[315120448,1708854647180,-271.82396538,0.00019999,2]
[315120449,1708854647189,-500.0,0.00019999,2]
[315120450,1708854647199,-268.27338569,0.00019999,2]
[315120451,1708854647208,-500.0,0.00019999,2]
[315120452,1708854647217,-500.0,0.00019999,2]
[315120453,1708854647226,-500.0,0.00019999,2]
[315120454,1708854647235,-500.0,0.00019999,2]
[315120455,1708854647244,-500.0,0.00019999,2]
[315120456,1708854647253,-500.0,0.00019999,2]
[315120457,1708854647263,-500.0,0.00019999,2]
[315120458,1708854647272,-500.0,0.00019999,2]
[315120459,1708854647281,-500.0,0.00019999,2]
[315120460,1708854647290,-500.0,0.00019999,2]
[315120461,1708854647299,-500.0,0.00019999,2]
[315120462,1708854647308,-550.0,0.00019999,2]
[315120463,1708854647317,-61437.24888289,0.0002,2]
[315120464,1708854647418,-500.0,0.00019178,2]
[315120465,1708854647427,-49501.75006125,0.0002,2]
[315120466,1708854647492,-656.65764238,0.00019177,2]
[315120467,1708854647503,-7572.51284875,0.00019177,2]
[315120468,1708854647512,-995.39972351,0.0002,2]
[315120469,1708854647532,-3353.92853369,0.0002,2]
[315120470,1708854647544,-302.11701993,0.0002,2]
[315120475,1708854858783,156.0715124,0.000176,2]
[315120503,1708855831771,-463.7665836,0.00018136,2]
[315120521,1708855837698,-119.5854894,0.00018136,2]
[315120522,1708855837708,-965.10379913,0.000189,2]
[315120523,1708855837717,-12.40071147,0.00019067,2]
[315120524,1708855837732,-8216.76977966,0.00019067,2]
[315120525,1708855837741,-170.39797678,0.00019068,2]
[315120526,1708855837750,-180.645392,0.00019078,2]
[315120527,1708855837760,-1210.52267942,0.00019078,2]
[315120528,1708855837772,-3151.44939623,0.00019078,2]
[315120529,1708855837784,-797.88128942,0.00019078,2]
[315120530,1708855837796,-4055.95921559,0.00019078,2]
[315120531,1708855837809,-6191.54987093,0.00019078,2]
[315120572,1708855843163,-264.89267456,0.00019078,2]
[315120574,1708855843175,-781.20470754,0.00019078,2]
[315120611,1708855845747,-3845.37356102,0.00019078,2]
[315120630,1708855888262,753.41423792,0.000176,2]
[315120637,1708856560584,183.171319,0.00018068,2]
[315120640,1708856974102,-5051.3530647,0.00018101,2]
[315120641,1708856974122,-858.26495444,0.00018119,2]
[315120691,1708857037889,-68.0412515,0.00018119,2]
[315120692,1708857037898,-816.93903321,0.000189,2]
[315120693,1708857037906,-151.62887317,0.00018983,2]
[315120694,1708857037915,-8229.17049113,0.00019077,2]
[315120695,1708857037924,-204.82565084,0.00019078,2]
[315120696,1708857037932,-170.39797678,0.00019078,2]
[315120697,1708857037941,-2314.67587435,0.00019078,2]
[315120698,1708857037950,-200.10399098,0.00019158,2]
[315120699,1708857037958,-316.24,0.00019168,3]
[315120700,1708857037967,-500.0,0.00019177,2]
[315120701,1708857037976,-500.0,0.00019178,2]
[315120702,1708857037985,-156.12047432,0.00019178,2]
[315120703,1708857037994,-500.0,0.00019178,2]
[315120704,1708857038003,-500.0,0.00019178,2]
[315120705,1708857038011,-500.0,0.00019178,2]